[Event "Late-Titled-Tuesday-Blitz-January-30-2024"]
[Site "Chess.com"]
[Date "2024.01.30"]
[Round "5"]
[White "j_coca"]
[Black "cristiano78"]
[Result "1-0"]
[WhiteElo "2492"]
[BlackElo "2294"]
[TimeControl "180+1"]
[EndTime "14:54:33 PST"]
[Termination "j_coca won by checkmate"]

1. f4 {[%clk 0:02:45.4]} 1... Nf6 {[%clk 0:02:57.7]} 2. Nf3 {[%clk 0:02:45.3]}
2... g6 {[%clk 0:02:56.5]} 3. e3 {[%clk 0:02:45.6]} 3... Bg7 {[%clk 0:02:56.3]}
4. d4 {[%clk 0:02:46.5]} 4... d6 {[%clk 0:02:56]} 5. c3 {[%clk 0:02:47.1]} 5...
O-O {[%clk 0:02:56.2]} 6. Bd3 {[%clk 0:02:47.5]} 6... b6 {[%clk 0:02:56.7]} 7.
O-O {[%clk 0:02:47.9]} 7... Bb7 {[%clk 0:02:56.7]} 8. Nbd2 {[%clk 0:02:48.2]}
8... Nbd7 {[%clk 0:02:56]} 9. Qe2 {[%clk 0:02:48.6]} 9... e5 {[%clk 0:02:56.2]}
10. Bc2 {[%clk 0:02:47]} 10... exf4 {[%clk 0:02:54.2]} 11. exf4 {[%clk
0:02:47.9]} 11... Re8 {[%clk 0:02:53]} 12. Qd3 {[%clk 0:02:44.9]} 12... Nd5
{[%clk 0:02:50.3]} 13. Ne4 {[%clk 0:02:44]} 13... N7f6 {[%clk 0:02:44.9]} 14.
Nxf6+ {[%clk 0:02:42.4]} 14... Nxf6 {[%clk 0:02:44.2]} 15. Ng5 {[%clk
0:02:42.2]} 15... h6 {[%clk 0:02:42.2]} 16. Nf3 {[%clk 0:02:42.4]} 16... Be4
{[%clk 0:02:40.8]} 17. Qd1 {[%clk 0:02:42.8]} 17... Qd7 {[%clk 0:02:37.5]} 18.
Bxe4 {[%clk 0:02:40]} 18... Nxe4 {[%clk 0:02:36.7]} 19. Qd3 {[%clk 0:02:39.5]}
19... f5 {[%clk 0:02:35.5]} 20. Bd2 {[%clk 0:02:38.8]} 20... Kh7 {[%clk
0:02:34.8]} 21. Rae1 {[%clk 0:02:38.4]} 21... Re7 {[%clk 0:02:34.2]} 22. Re2
{[%clk 0:02:37.6]} 22... Rae8 {[%clk 0:02:34]} 23. Rfe1 {[%clk 0:02:38.1]} 23...
Qe6 {[%clk 0:02:31.8]} 24. h3 {[%clk 0:02:35.2]} 24... Qxa2 {[%clk 0:02:29.8]}
25. c4 {[%clk 0:02:32.4]} 25... c5 {[%clk 0:02:23.2]} 26. Bc3 {[%clk 0:02:30.9]}
26... cxd4 {[%clk 0:02:18.8]} 27. Nxd4 {[%clk 0:02:30.5]} 27... Qa4 {[%clk
0:02:11.7]} 28. b3 {[%clk 0:02:29.8]} 28... Qd7 {[%clk 0:02:10.5]} 29. g4 {[%clk
0:02:28.8]} 29... d5 {[%clk 0:02:09]} 30. gxf5 {[%clk 0:02:22.9]} 30... gxf5
{[%clk 0:02:07.7]} 31. Bb2 {[%clk 0:02:22.2]} 31... dxc4 {[%clk 0:02:07]} 32.
bxc4 {[%clk 0:02:23.1]} 32... Rd8 {[%clk 0:02:02.4]} 33. Rxe4 {[%clk 0:02:23]}
33... fxe4 {[%clk 0:01:59.6]} 34. Rxe4 {[%clk 0:02:23.6]} 34... Rxe4 {[%clk
0:01:57.2]} 35. Qxe4+ {[%clk 0:02:24.5]} 35... Kh8 {[%clk 0:01:56.7]} 36. Ne6
{[%clk 0:02:15]} 36... Qd1+ {[%clk 0:01:50.2]} 37. Kg2 {[%clk 0:02:11.5]} 37...
Rd2+ {[%clk 0:01:48.4]} 38. Kg3 {[%clk 0:02:12.2]} 38... Qg1+ {[%clk 0:01:42.9]}
39. Kh4 {[%clk 0:02:12.3]} 39... Qf2+ {[%clk 0:01:39]} 40. Kh5 {[%clk
0:02:11.6]} 40... Bxb2 {[%clk 0:01:37.1]} 41. Qa8+ {[%clk 0:02:09.7]} 41... Kh7
{[%clk 0:01:27.9]} 42. Qe4+ {[%clk 0:02:05.2]} 42... Kg8 {[%clk 0:01:23.8]} 43.
Qg6+ {[%clk 0:02:05.3]} 43... Kh8 {[%clk 0:01:20]} 44. Qe8+ {[%clk 0:02:03.9]}
44... Kh7 {[%clk 0:01:19.8]} 45. Qf7+ {[%clk 0:02:04.3]} 45... Kh8 {[%clk
0:01:19.5]} 46. Qf8+ {[%clk 0:02:01]} 46... Kh7 {[%clk 0:01:19.4]} 47. Qxh6+
{[%clk 0:02:01.2]} 47... Kg8 {[%clk 0:01:19.7]} 48. Qg6+ {[%clk 0:02:01.8]}
48... Kh8 {[%clk 0:01:18.5]} 49. Qe8+ {[%clk 0:02:01]} 49... Kh7 {[%clk
0:01:18.6]} 50. Ng5+ {[%clk 0:02:01.6]} 50... Kg7 {[%clk 0:01:17.2]} 51. Qf7+
{[%clk 0:02:02.3]} 51... Kh8 {[%clk 0:01:07.9]} 52. Qh7# {[%clk 0:02:03.2]} 1-0

[Event "Late-Titled-Tuesday-Blitz-January-30-2024"]
[Site "Chess.com"]
[Date "2024.01.30"]
[Round "5"]
[White "jefferyx"]
[Black "jk13"]
[Result "1-0"]
[WhiteElo "3015"]
[BlackElo "2705"]
[TimeControl "180+1"]
[EndTime "14:54:56 PST"]
[Termination "jefferyx won by resignation"]

1. d4 {[%clk 0:03:00.9]} 1... Nf6 {[%clk 0:02:59.4]} 2. c4 {[%clk 0:03:01]} 2...
e6 {[%clk 0:03:00]} 3. Nc3 {[%clk 0:03:01.4]} 3... Bb4 {[%clk 0:03:00.6]} 4. Nf3
{[%clk 0:03:01.9]} 4... c5 {[%clk 0:03:00.3]} 5. g3 {[%clk 0:03:01.8]} 5...
Bxc3+ {[%clk 0:02:57.5]} 6. bxc3 {[%clk 0:03:01.9]} 6... Qa5 {[%clk 0:02:58.4]}
7. Bd2 {[%clk 0:03:01]} 7... b6 {[%clk 0:02:58.1]} 8. Bg2 {[%clk 0:03:00.1]}
8... Bb7 {[%clk 0:02:58.7]} 9. O-O {[%clk 0:02:59]} 9... Qa6 {[%clk 0:02:59.3]}
10. d5 {[%clk 0:02:24.9]} 10... O-O {[%clk 0:02:49.3]} 11. Bg5 {[%clk
0:02:07.3]} 11... Ne4 {[%clk 0:02:45]} 12. Qc2 {[%clk 0:02:05.3]} 12... f5
{[%clk 0:02:23.1]} 13. Bf4 {[%clk 0:02:03.7]} 13... Qxc4 {[%clk 0:01:40.5]} 14.
Ne5 {[%clk 0:02:03.6]} 14... Qa6 {[%clk 0:01:32.2]} 15. Bxe4 {[%clk 0:02:01.7]}
15... fxe4 {[%clk 0:01:31.2]} 16. dxe6 {[%clk 0:02:01.1]} 16... dxe6 {[%clk
0:01:12.7]} 17. Rad1 {[%clk 0:01:58.7]} 17... Qb5 {[%clk 0:01:07]} 18. Rd6
{[%clk 0:01:45.5]} 18... Qe8 {[%clk 0:00:39.9]} 19. Rfd1 {[%clk 0:01:44]} 19...
Nc6 {[%clk 0:00:28.3]} 20. Qxe4 {[%clk 0:01:35.5]} 20... Nxe5 {[%clk 0:00:19.5]}
21. Qxb7 {[%clk 0:01:33.9]} 21... Ng6 {[%clk 0:00:17.2]} 22. Rd7 {[%clk
0:01:33.2]} 22... Kh8 {[%clk 0:00:04.1]} 23. Rxg7 {[%clk 0:01:32.5]} 1-0

[Event "Late-Titled-Tuesday-Blitz-January-30-2024"]
[Site "Chess.com"]
[Date "2024.01.30"]
[Round "5"]
[White "chessisveryfun1264"]
[Black "azikom"]
[Result "0-1"]
[WhiteElo "2550"]
[BlackElo "2732"]
[TimeControl "180+1"]
[EndTime "14:54:57 PST"]
[Termination "azikom won by resignation"]

1. Nf3 {[%clk 0:02:47.6]} 1... c6 {[%clk 0:03:00.9]} 2. g3 {[%clk 0:02:45.3]}
2... d5 {[%clk 0:03:01.2]} 3. Bg2 {[%clk 0:02:40.7]} 3... Bg4 {[%clk 0:03:01.3]}
4. d4 {[%clk 0:02:38.6]} 4... Nd7 {[%clk 0:03:01.1]} 5. O-O {[%clk 0:02:38.8]}
5... e6 {[%clk 0:03:01.4]} 6. c4 {[%clk 0:02:39.4]} 6... Ngf6 {[%clk 0:02:56.4]}
7. Qc2 {[%clk 0:02:38.5]} 7... Be7 {[%clk 0:02:51.3]} 8. Bf4 {[%clk 0:02:36.9]}
8... O-O {[%clk 0:02:50.7]} 9. Qb3 {[%clk 0:02:32.9]} 9... Qb6 {[%clk
0:02:49.5]} 10. c5 {[%clk 0:02:32.5]} 10... Qxb3 {[%clk 0:02:42.2]} 11. axb3
{[%clk 0:02:33.4]} 11... Bxf3 {[%clk 0:02:32.9]} 12. Bxf3 {[%clk 0:02:32.3]}
12... a6 {[%clk 0:02:33.4]} 13. Nc3 {[%clk 0:02:31.2]} 13... Rac8 {[%clk
0:02:32.8]} 14. b4 {[%clk 0:02:31.1]} 14... Bd8 {[%clk 0:02:30.1]} 15. Bd6
{[%clk 0:02:29.2]} 15... Re8 {[%clk 0:02:29.7]} 16. e4 {[%clk 0:02:24.9]} 16...
dxe4 {[%clk 0:02:29.4]} 17. Nxe4 {[%clk 0:02:25.8]} 17... Nxe4 {[%clk 0:02:30]}
18. Bxe4 {[%clk 0:02:26.7]} 18... Bc7 {[%clk 0:02:26.6]} 19. Bxc7 {[%clk
0:02:16.7]} 19... Rxc7 {[%clk 0:02:27.5]} 20. Rfe1 {[%clk 0:02:14.8]} 20... Nf6
{[%clk 0:02:27.8]} 21. Bf3 {[%clk 0:02:02.9]} 21... Rd8 {[%clk 0:02:27.7]} 22.
Red1 {[%clk 0:02:03]} 22... Rcd7 {[%clk 0:02:27.8]} 23. Bxc6 {[%clk 0:01:51.2]}
23... bxc6 {[%clk 0:02:26.9]} 24. Rxa6 {[%clk 0:01:51.8]} 24... Rc7 {[%clk
0:02:25.9]} 25. Rda1 {[%clk 0:01:43.3]} 25... Rcc8 {[%clk 0:02:21.1]} 26. Rb6
{[%clk 0:01:36.7]} 26... g6 {[%clk 0:02:09.9]} 27. Rb7 {[%clk 0:01:32.1]} 27...
Rb8 {[%clk 0:02:05.3]} 28. Rc7 {[%clk 0:01:11.8]} 28... Nd5 {[%clk 0:01:56.8]}
29. Rxc6 {[%clk 0:01:10.6]} 29... Nxb4 {[%clk 0:01:57.3]} 30. Rc7 {[%clk
0:01:08.9]} 30... Nd5 {[%clk 0:01:57.7]} 31. Rca7 {[%clk 0:01:04.4]} 31... Rxb2
{[%clk 0:01:56.5]} 32. Rc1 {[%clk 0:01:01.9]} 32... Kg7 {[%clk 0:01:46.7]} 33.
c6 {[%clk 0:01:01.3]} 33... Rc8 {[%clk 0:01:46.7]} 34. Rd7 {[%clk 0:00:47.5]}
34... Rb6 {[%clk 0:01:30.6]} 35. c7 {[%clk 0:00:46.8]} 35... Rb7 {[%clk
0:01:30.8]} 36. Rxd5 {[%clk 0:00:43.3]} 0-1

[Event "Late-Titled-Tuesday-Blitz-January-30-2024"]
[Site "Chess.com"]
[Date "2024.01.30"]
[Round "5"]
[White "wild3000"]
[Black "HajiyevKanan"]
[Result "0-1"]
[WhiteElo "2344"]
[BlackElo "2569"]
[TimeControl "180+1"]
[EndTime "14:55:00 PST"]
[Termination "HajiyevKanan won by resignation"]

1. d4 {[%clk 0:02:59.1]} 1... d5 {[%clk 0:02:59.8]} 2. c4 {[%clk 0:02:59.1]}
2... c6 {[%clk 0:03:00.4]} 3. Nc3 {[%clk 0:02:59]} 3... Nf6 {[%clk 0:02:59.8]}
4. Nf3 {[%clk 0:02:59]} 4... a6 {[%clk 0:02:59.5]} 5. c5 {[%clk 0:02:58.1]} 5...
Nbd7 {[%clk 0:02:58.9]} 6. Bf4 {[%clk 0:02:57.5]} 6... Nh5 {[%clk 0:02:59.3]} 7.
Bd2 {[%clk 0:02:55.8]} 7... e5 {[%clk 0:03:00]} 8. dxe5 {[%clk 0:02:55.4]} 8...
Bxc5 {[%clk 0:02:58.7]} 9. e3 {[%clk 0:02:53.8]} 9... Nb6 {[%clk 0:02:44.5]} 10.
Nd4 {[%clk 0:02:47.9]} 10... g6 {[%clk 0:02:39.3]} 11. Be2 {[%clk 0:02:47]}
11... Ng7 {[%clk 0:02:38.3]} 12. O-O {[%clk 0:02:36.4]} 12... O-O {[%clk
0:02:37.5]} 13. Nb3 {[%clk 0:02:30.7]} 13... Bb4 {[%clk 0:02:33.5]} 14. a3
{[%clk 0:02:30.1]} 14... Be7 {[%clk 0:02:29.4]} 15. f4 {[%clk 0:02:18.6]} 15...
h5 {[%clk 0:02:18.4]} 16. Rc1 {[%clk 0:02:16.8]} 16... Bf5 {[%clk 0:02:15.9]}
17. Nd4 {[%clk 0:02:10.6]} 17... Nc4 {[%clk 0:02:09.8]} 18. Nxf5 {[%clk
0:01:58.5]} 18... Nxf5 {[%clk 0:02:09]} 19. Bxc4 {[%clk 0:01:51.3]} 19... dxc4
{[%clk 0:02:09.9]} 20. Qe2 {[%clk 0:01:51.3]} 20... Qd3 {[%clk 0:02:08]} 21.
Qxd3 {[%clk 0:01:51]} 21... cxd3 {[%clk 0:02:08.9]} 22. Ne4 {[%clk 0:01:50.5]}
22... Rfd8 {[%clk 0:02:07.5]} 23. Rfd1 {[%clk 0:01:50]} 23... Rd5 {[%clk
0:02:03.7]} 24. Kf2 {[%clk 0:01:49.9]} 24... c5 {[%clk 0:01:54.6]} 25. b3 {[%clk
0:01:42.8]} 25... b5 {[%clk 0:01:52.5]} 26. g3 {[%clk 0:01:42.4]} 26... Rc8
{[%clk 0:01:45.4]} 27. Rc3 {[%clk 0:01:41.3]} 27... c4 {[%clk 0:01:37.5]} 28.
bxc4 {[%clk 0:01:40.3]} 28... Rxc4 {[%clk 0:01:35.9]} 29. Rdc1 {[%clk
0:01:37.2]} 29... Rxe4 {[%clk 0:01:35.6]} 30. Kf3 {[%clk 0:01:35.2]} 30... Ra4
{[%clk 0:01:30.6]} 31. e4 {[%clk 0:01:33.6]} 31... Nd4+ {[%clk 0:01:30.7]} 32.
Ke3 {[%clk 0:01:33.2]} 32... Rd8 {[%clk 0:01:27.9]} 33. Rxd3 {[%clk 0:01:31.7]}
33... Rxa3 {[%clk 0:01:20.4]} 34. Rxa3 {[%clk 0:01:17.8]} 34... Bxa3 {[%clk
0:01:19.6]} 35. Ba5 {[%clk 0:01:17.3]} 35... Bxc1+ {[%clk 0:01:17.6]} 36. Kd3
{[%clk 0:01:14.2]} 36... Nc6+ {[%clk 0:01:13.9]} 37. Bxd8 {[%clk 0:01:13.4]}
37... Nxd8 {[%clk 0:01:14.8]} 38. f5 {[%clk 0:01:13]} 38... Bb2 {[%clk
0:01:10.8]} 39. e6 {[%clk 0:01:11.2]} 39... fxe6 {[%clk 0:01:09.9]} 0-1

[Event "Late-Titled-Tuesday-Blitz-January-30-2024"]
[Site "Chess.com"]
[Date "2024.01.30"]
[Round "5"]
[White "jinbojinbo"]
[Black "EsmeraldasAnderson03"]
[Result "0-1"]
[WhiteElo "2624"]
[BlackElo "2428"]
[TimeControl "180+1"]
[EndTime "14:55:06 PST"]
[Termination "EsmeraldasAnderson03 won by resignation"]

1. Nf3 {[%clk 0:03:00.9]} 1... d5 {[%clk 0:02:59.7]} 2. b3 {[%clk 0:03:01.2]}
2... Nf6 {[%clk 0:03:00]} 3. Bb2 {[%clk 0:03:01.8]} 3... Bf5 {[%clk 0:03:00.5]}
4. c4 {[%clk 0:03:01.6]} 4... e6 {[%clk 0:03:00.5]} 5. e3 {[%clk 0:03:01.6]}
5... h6 {[%clk 0:03:00.6]} 6. Be2 {[%clk 0:02:57.5]} 6... Be7 {[%clk 0:03:00.3]}
7. O-O {[%clk 0:02:57.3]} 7... O-O {[%clk 0:03:01]} 8. Nc3 {[%clk 0:02:56.4]}
8... c6 {[%clk 0:02:59.7]} 9. d4 {[%clk 0:02:55.9]} 9... Nbd7 {[%clk 0:02:56.9]}
10. Re1 {[%clk 0:02:55.9]} 10... Bd6 {[%clk 0:02:56.3]} 11. Rc1 {[%clk 0:02:53]}
11... Ne4 {[%clk 0:02:52.7]} 12. Bf1 {[%clk 0:02:51.6]} 12... Bg4 {[%clk
0:02:50.8]} 13. h3 {[%clk 0:02:48.5]} 13... Bh5 {[%clk 0:02:50.6]} 14. Be2
{[%clk 0:02:46.8]} 14... Bg6 {[%clk 0:02:50.4]} 15. Nxe4 {[%clk 0:02:46.3]}
15... Bxe4 {[%clk 0:02:47.6]} 16. Nd2 {[%clk 0:02:46.2]} 16... Bg6 {[%clk
0:02:42.5]} 17. Bf3 {[%clk 0:02:45.7]} 17... f5 {[%clk 0:02:42.7]} 18. a3 {[%clk
0:02:42.5]} 18... a5 {[%clk 0:02:41.2]} 19. g3 {[%clk 0:02:28.4]} 19... Qe7
{[%clk 0:02:39.4]} 20. a4 {[%clk 0:02:28.2]} 20... Nf6 {[%clk 0:02:35.9]} 21.
Bg2 {[%clk 0:02:27.5]} 21... Ne4 {[%clk 0:02:35.1]} 22. Nf3 {[%clk 0:02:26.2]}
22... Bh5 {[%clk 0:02:31.4]} 23. Qc2 {[%clk 0:02:24.8]} 23... Bb4 {[%clk
0:02:24.6]} 24. Red1 {[%clk 0:02:24.2]} 24... g5 {[%clk 0:02:17.6]} 25. Rf1
{[%clk 0:02:06.5]} 25... Bxf3 {[%clk 0:02:07.7]} 26. Bxf3 {[%clk 0:02:06.4]}
26... Bd6 {[%clk 0:02:04.4]} 27. Bg2 {[%clk 0:01:52]} 27... Rf7 {[%clk
0:02:03.8]} 28. g4 {[%clk 0:01:44.7]} 28... Raf8 {[%clk 0:01:29.1]} 29. gxf5
{[%clk 0:01:36.7]} 29... exf5 {[%clk 0:01:26.5]} 30. cxd5 {[%clk 0:01:36.4]}
30... cxd5 {[%clk 0:01:26.5]} 31. Qe2 {[%clk 0:01:26]} 31... f4 {[%clk
0:01:21.3]} 32. exf4 {[%clk 0:01:26.2]} 32... Rxf4 {[%clk 0:01:16.2]} 33. Qh5
{[%clk 0:01:11.8]} 33... Qf6 {[%clk 0:01:10.3]} 34. Rc2 {[%clk 0:01:06.9]} 34...
Rh4 {[%clk 0:01:09.3]} 35. Qe2 {[%clk 0:00:57.2]} 35... Qf4 {[%clk 0:01:07.9]}
36. Rfc1 {[%clk 0:00:56.5]} 36... Qh2+ {[%clk 0:01:07.7]} 37. Kf1 {[%clk
0:00:57]} 37... Ng3+ {[%clk 0:01:08.4]} 0-1

[Event "Late-Titled-Tuesday-Blitz-January-30-2024"]
[Site "Chess.com"]
[Date "2024.01.30"]
[Round "5"]
[White "ansko1999"]
[Black "dropstoneDP"]
[Result "0-1"]
[WhiteElo "2668"]
[BlackElo "3041"]
[TimeControl "180+1"]
[EndTime "14:55:11 PST"]
[Termination "dropstoneDP won on time"]

1. e4 {[%clk 0:03:00.9]} 1... e5 {[%clk 0:02:59.2]} 2. Nf3 {[%clk 0:03:00.8]}
2... Nf6 {[%clk 0:02:59.8]} 3. Nxe5 {[%clk 0:02:58.1]} 3... d6 {[%clk
0:02:59.4]} 4. Nd3 {[%clk 0:02:56.8]} 4... Nxe4 {[%clk 0:02:59.7]} 5. Qe2 {[%clk
0:02:55.2]} 5... Qe7 {[%clk 0:02:59.3]} 6. Nf4 {[%clk 0:02:55.6]} 6... Nc6
{[%clk 0:02:59.2]} 7. Nd5 {[%clk 0:02:46.6]} 7... Nd4 {[%clk 0:02:58.4]} 8. Nxe7
{[%clk 0:02:45.4]} 8... Nxe2 {[%clk 0:02:58.4]} 9. Nd5 {[%clk 0:02:43.7]} 9...
Nd4 {[%clk 0:02:58.7]} 10. Nxc7+ {[%clk 0:02:03]} 10... Kd8 {[%clk 0:02:48.5]}
11. Nxa8 {[%clk 0:02:03.3]} 11... Nxc2+ {[%clk 0:02:48.6]} 12. Ke2 {[%clk
0:01:56.6]} 12... Nxa1 {[%clk 0:02:45.6]} 13. Nc3 {[%clk 0:01:52.5]} 13... d5
{[%clk 0:02:02.6]} 14. f3 {[%clk 0:01:24.8]} 14... Nf6 {[%clk 0:01:57.1]} 15. d4
{[%clk 0:00:45.2]} 15... Bd6 {[%clk 0:01:49.2]} 16. Bg5 {[%clk 0:00:42.3]} 16...
Nc2 {[%clk 0:01:44.3]} 17. Nxd5 {[%clk 0:00:31.3]} 17... Nxd4+ {[%clk
0:01:43.8]} 18. Kd3 {[%clk 0:00:30.9]} 18... Ne6 {[%clk 0:01:44.2]} 19. Bh4
{[%clk 0:00:18.8]} 19... g5 {[%clk 0:01:34.9]} 20. Nxf6 {[%clk 0:00:18.8]} 20...
gxh4 {[%clk 0:01:34.5]} 21. Ne4 {[%clk 0:00:18]} 21... Be5 {[%clk 0:01:30.9]}
22. Kc2 {[%clk 0:00:12.7]} 22... b6 {[%clk 0:01:30.8]} 23. Bc4 {[%clk
0:00:10.9]} 23... Bb7 {[%clk 0:01:31]} 24. Rd1+ {[%clk 0:00:10.9]} 24... Ke7
{[%clk 0:01:30.9]} 25. Bxe6 {[%clk 0:00:05.8]} 25... fxe6 {[%clk 0:01:30.6]} 0-1

[Event "Late-Titled-Tuesday-Blitz-January-30-2024"]
[Site "Chess.com"]
[Date "2024.01.30"]
[Round "5"]
[White "Korchmar_Vasiliy"]
[Black "GMWSO"]
[Result "0-1"]
[WhiteElo "2715"]
[BlackElo "3090"]
[TimeControl "180+1"]
[EndTime "14:55:13 PST"]
[Termination "GMWSO won on time"]

1. e4 {[%clk 0:03:00.9]} 1... c5 {[%clk 0:02:54.3]} 2. d4 {[%clk 0:03:00.9]}
2... cxd4 {[%clk 0:02:54.1]} 3. Qxd4 {[%clk 0:03:01.8]} 3... Nc6 {[%clk
0:02:53.3]} 4. Qd3 {[%clk 0:03:02.2]} 4... Nf6 {[%clk 0:02:50.1]} 5. Nc3 {[%clk
0:03:02.4]} 5... e6 {[%clk 0:02:50.4]} 6. Bf4 {[%clk 0:03:01.7]} 6... d5 {[%clk
0:02:38.2]} 7. exd5 {[%clk 0:03:01.4]} 7... Nb4 {[%clk 0:02:38.3]} 8. Qd2 {[%clk
0:02:39]} 8... Nfxd5 {[%clk 0:02:35.3]} 9. O-O-O {[%clk 0:01:47.4]} 9... Bd7
{[%clk 0:02:26.8]} 10. Nxd5 {[%clk 0:01:23.7]} 10... Nxd5 {[%clk 0:02:27.7]} 11.
Be5 {[%clk 0:01:16.6]} 11... f6 {[%clk 0:02:18.6]} 12. Bd4 {[%clk 0:01:10]}
12... Rc8 {[%clk 0:02:14.1]} 13. a3 {[%clk 0:00:43.1]} 13... Ba4 {[%clk
0:02:04.5]} 14. Bd3 {[%clk 0:00:35.2]} 14... e5 {[%clk 0:02:03.2]} 15. Qe2
{[%clk 0:00:23.3]} 15... Nf4 {[%clk 0:01:35.9]} 16. Bb5+ {[%clk 0:00:11.1]}
16... Kf7 {[%clk 0:01:14.8]} 17. Bc4+ {[%clk 0:00:11.4]} 17... Ke7 {[%clk
0:01:14.4]} 18. Qf1 {[%clk 0:00:05]} 18... Qc7 {[%clk 0:01:11.4]} 0-1

[Event "Late-Titled-Tuesday-Blitz-January-30-2024"]
[Site "Chess.com"]
[Date "2024.01.30"]
[Round "5"]
[White "santosalberto1987"]
[Black "dzilleruelo"]
[Result "1-0"]
[WhiteElo "2533"]
[BlackElo "2326"]
[TimeControl "180+1"]
[EndTime "14:55:25 PST"]
[Termination "santosalberto1987 won by resignation"]

1. e4 {[%clk 0:03:00.9]} 1... c6 {[%clk 0:02:59.9]} 2. c4 {[%clk 0:03:00.8]}
2... d5 {[%clk 0:03:00.8]} 3. exd5 {[%clk 0:03:01.4]} 3... cxd5 {[%clk
0:03:01.4]} 4. cxd5 {[%clk 0:03:02.1]} 4... Nf6 {[%clk 0:03:01.8]} 5. Qa4+
{[%clk 0:03:02.5]} 5... Nbd7 {[%clk 0:03:01.4]} 6. Bc4 {[%clk 0:03:02.2]} 6...
g6 {[%clk 0:03:01.8]} 7. Nc3 {[%clk 0:03:02.2]} 7... Bg7 {[%clk 0:03:02.3]} 8.
Nf3 {[%clk 0:03:02.8]} 8... O-O {[%clk 0:03:02.6]} 9. d3 {[%clk 0:03:03.3]} 9...
Nb6 {[%clk 0:03:02.8]} 10. Qb3 {[%clk 0:03:03.5]} 10... a5 {[%clk 0:03:02.1]}
11. Be3 {[%clk 0:03:00.3]} 11... Nxc4 {[%clk 0:02:58.9]} 12. dxc4 {[%clk
0:03:01.2]} 12... Bf5 {[%clk 0:02:55.7]} 13. O-O {[%clk 0:02:59.9]} 13... Rc8
{[%clk 0:02:46]} 14. c5 {[%clk 0:02:49.1]} 14... Be4 {[%clk 0:02:38.2]} 15. Rfd1
{[%clk 0:02:46.3]} 15... Bxf3 {[%clk 0:02:38]} 16. gxf3 {[%clk 0:02:47.2]} 16...
Qd7 {[%clk 0:02:31.2]} 17. Qb5 {[%clk 0:02:37.7]} 17... Qh3 {[%clk 0:02:30]} 18.
Qe2 {[%clk 0:02:21]} 18... Nh5 {[%clk 0:02:26.5]} 19. Ne4 {[%clk 0:02:15]} 19...
Be5 {[%clk 0:02:17.8]} 20. Ng3 {[%clk 0:02:14.1]} 20... Bf4 {[%clk 0:02:07.5]}
21. Qf1 {[%clk 0:02:07.5]} 21... Qxf1+ {[%clk 0:01:57.3]} 22. Kxf1 {[%clk
0:02:05.6]} 22... Nxg3+ {[%clk 0:01:49.7]} 23. hxg3 {[%clk 0:02:05.3]} 23...
Bxe3 {[%clk 0:01:50.3]} 24. fxe3 {[%clk 0:02:05.4]} 24... Rxc5 {[%clk 0:01:51]}
25. Rd2 {[%clk 0:02:02.2]} 25... Rfc8 {[%clk 0:01:48.5]} 26. Rad1 {[%clk
0:02:00.3]} 26... Kf8 {[%clk 0:01:47.7]} 27. Ke2 {[%clk 0:02:00.1]} 27... b5
{[%clk 0:01:47.1]} 28. e4 {[%clk 0:01:59.3]} 28... Rc2 {[%clk 0:01:44]} 29. Rxc2
{[%clk 0:01:58.1]} 29... Rxc2+ {[%clk 0:01:43.6]} 30. Rd2 {[%clk 0:01:59]} 30...
Rxd2+ {[%clk 0:01:30.8]} 31. Kxd2 {[%clk 0:01:58.9]} 31... h5 {[%clk 0:01:31]}
32. f4 {[%clk 0:01:58]} 32... f6 {[%clk 0:01:30.7]} 33. e5 {[%clk 0:01:53.4]}
33... fxe5 {[%clk 0:01:25.4]} 34. fxe5 {[%clk 0:01:53.4]} 34... g5 {[%clk
0:01:24.5]} 35. Ke3 {[%clk 0:01:53.8]} 35... Kf7 {[%clk 0:01:22.2]} 36. Ke4
{[%clk 0:01:51.9]} 36... Kg6 {[%clk 0:01:11.8]} 37. d6 {[%clk 0:01:45.5]} 37...
exd6 {[%clk 0:01:11.2]} 38. exd6 {[%clk 0:01:46.4]} 38... Kf6 {[%clk 0:01:09.3]}
39. Kd5 {[%clk 0:01:43.4]} 39... h4 {[%clk 0:01:09.4]} 40. gxh4 {[%clk
0:01:44.2]} 40... gxh4 {[%clk 0:01:09.5]} 41. Kc6 {[%clk 0:01:42.2]} 41... h3
{[%clk 0:00:19.6]} 42. d7 {[%clk 0:01:41.1]} 1-0

[Event "Late-Titled-Tuesday-Blitz-January-30-2024"]
[Site "Chess.com"]
[Date "2024.01.30"]
[Round "5"]
[White "Kildepiotr"]
[Black "crescentmoon2411"]
[Result "0-1"]
[WhiteElo "2695"]
[BlackElo "3007"]
[TimeControl "180+1"]
[EndTime "14:55:26 PST"]
[Termination "crescentmoon2411 won by resignation"]

1. Nf3 {[%clk 0:02:56.1]} 1... Nf6 {[%clk 0:03:00.1]} 2. g3 {[%clk 0:02:54.4]}
2... d6 {[%clk 0:03:00.5]} 3. Bg2 {[%clk 0:02:54.9]} 3... e5 {[%clk 0:03:01]} 4.
d4 {[%clk 0:02:54.2]} 4... e4 {[%clk 0:03:01.2]} 5. Nfd2 {[%clk 0:02:52.2]} 5...
d5 {[%clk 0:03:02]} 6. c4 {[%clk 0:02:52.2]} 6... c6 {[%clk 0:03:02.3]} 7. O-O
{[%clk 0:02:52.5]} 7... h5 {[%clk 0:03:01.6]} 8. h4 {[%clk 0:02:51.3]} 8... Bd6
{[%clk 0:02:59.8]} 9. cxd5 {[%clk 0:02:51]} 9... cxd5 {[%clk 0:03:00.7]} 10. Nb3
{[%clk 0:02:50.2]} 10... Be6 {[%clk 0:02:55.3]} 11. Bg5 {[%clk 0:02:50]} 11...
Nbd7 {[%clk 0:02:54.8]} 12. Nc3 {[%clk 0:02:49.9]} 12... a6 {[%clk 0:02:48.8]}
13. Na4 {[%clk 0:02:49.7]} 13... Qb8 {[%clk 0:02:44.2]} 14. e3 {[%clk
0:02:40.2]} 14... Ng4 {[%clk 0:02:29.4]} 15. Bf4 {[%clk 0:02:37.1]} 15... Bxf4
{[%clk 0:02:25.3]} 16. exf4 {[%clk 0:02:38]} 16... b6 {[%clk 0:02:24.5]} 17. Rc1
{[%clk 0:02:33.5]} 17... O-O {[%clk 0:02:19.8]} 18. Nc3 {[%clk 0:02:31.5]} 18...
Qd6 {[%clk 0:02:16.7]} 19. Qe2 {[%clk 0:02:24]} 19... Rfe8 {[%clk 0:02:00.8]}
20. Nd1 {[%clk 0:02:22.9]} 20... a5 {[%clk 0:01:52.8]} 21. Ne3 {[%clk
0:02:20.5]} 21... a4 {[%clk 0:01:44.1]} 22. Nd2 {[%clk 0:02:16.1]} 22... a3
{[%clk 0:01:36.9]} 23. b3 {[%clk 0:02:09.8]} 23... Ndf6 {[%clk 0:01:34]} 24.
Rfd1 {[%clk 0:01:55.4]} 24... Rec8 {[%clk 0:01:29.3]} 25. Ndf1 {[%clk
0:01:54.7]} 25... Qb4 {[%clk 0:01:21.8]} 26. f5 {[%clk 0:01:45.8]} 26... Bd7
{[%clk 0:01:20.8]} 27. Nxg4 {[%clk 0:01:42.3]} 27... Nxg4 {[%clk 0:01:19.7]} 28.
Rxc8+ {[%clk 0:01:35.2]} 28... Rxc8 {[%clk 0:01:20.4]} 29. f3 {[%clk 0:01:35.6]}
29... Bb5 {[%clk 0:00:58.7]} 30. Qe1 {[%clk 0:01:27.4]} 30... Qxe1 {[%clk
0:00:55.8]} 31. Rxe1 {[%clk 0:01:28.3]} 31... Bxf1 {[%clk 0:00:48.4]} 32. fxg4
{[%clk 0:01:16.3]} 32... Bxg2 {[%clk 0:00:48.2]} 33. Kxg2 {[%clk 0:01:17.2]}
33... hxg4 {[%clk 0:00:48.8]} 34. Re2 {[%clk 0:01:16.3]} 34... Rc3 {[%clk
0:00:45.7]} 35. Rf2 {[%clk 0:01:09]} 35... f6 {[%clk 0:00:43.2]} 36. Rd2 {[%clk
0:01:07.2]} 36... b5 {[%clk 0:00:42.9]} 37. Kf2 {[%clk 0:01:03.3]} 37... e3+
{[%clk 0:00:42.5]} 0-1